[Event "Early-Titled-Tuesday-Blitz-January-30-2024"]
[Site "Chess.com"]
[Date "2024.01.30"]
[Round "9"]
[White "AlexTruskavetsky"]
[Black "Cheer_Down"]
[Result "1-0"]
[WhiteElo "2695"]
[BlackElo "2467"]
[TimeControl "180+1"]
[EndTime "9:48:44 PST"]
[Termination "AlexTruskavetsky won by resignation"]

1. d4 {[%clk 0:02:59.7]} 1... Nf6 {[%clk 0:02:59.2]} 2. c4 {[%clk 0:03:00.1]}
2... e6 {[%clk 0:02:59.5]} 3. Nc3 {[%clk 0:03:00.7]} 3... Bb4 {[%clk 0:02:59.5]}
4. e3 {[%clk 0:03:00.7]} 4... O-O {[%clk 0:02:56.9]} 5. a3 {[%clk 0:02:58.9]}
5... Bxc3+ {[%clk 0:02:55.6]} 6. bxc3 {[%clk 0:02:59.8]} 6... c5 {[%clk
0:02:53.8]} 7. Bd3 {[%clk 0:02:59.2]} 7... Nc6 {[%clk 0:02:28.9]} 8. Ne2 {[%clk
0:02:59]} 8... b6 {[%clk 0:02:24.6]} 9. O-O {[%clk 0:02:57.3]} 9... Ba6 {[%clk
0:02:19.8]} 10. e4 {[%clk 0:02:56.4]} 10... Ne8 {[%clk 0:02:19.4]} 11. f4 {[%clk
0:02:56.2]} 11... f5 {[%clk 0:02:18.5]} 12. exf5 {[%clk 0:02:33.3]} 12... exf5
{[%clk 0:02:17.5]} 13. Ng3 {[%clk 0:02:34]} 13... g6 {[%clk 0:02:09.8]} 14. dxc5
{[%clk 0:02:33.7]} 14... bxc5 {[%clk 0:02:09.3]} 15. Be2 {[%clk 0:02:34.1]}
15... Nf6 {[%clk 0:01:30.6]} 16. Be3 {[%clk 0:02:32.9]} 16... d6 {[%clk
0:01:27.9]} 17. Bf3 {[%clk 0:02:32.7]} 17... Rc8 {[%clk 0:01:26.8]} 18. Qa4
{[%clk 0:02:32.4]} 18... Bb7 {[%clk 0:01:23.2]} 19. Rab1 {[%clk 0:02:31.9]}
19... Ba8 {[%clk 0:01:22.5]} 20. Rfd1 {[%clk 0:02:32.3]} 20... Qc7 {[%clk
0:01:20.3]} 21. Rd2 {[%clk 0:02:30.9]} 21... Rfe8 {[%clk 0:01:18.2]} 22. Bf2
{[%clk 0:02:31.4]} 22... Ne4 {[%clk 0:01:13.7]} 23. Bxe4 {[%clk 0:02:23.4]}
23... fxe4 {[%clk 0:01:14.6]} 24. Nf1 {[%clk 0:02:23.3]} 24... Ne7 {[%clk
0:01:11.9]} 25. Rbd1 {[%clk 0:02:23]} 25... Nf5 {[%clk 0:01:11]} 26. Ne3 {[%clk
0:02:23.5]} 26... Nxe3 {[%clk 0:01:07.7]} 27. Bxe3 {[%clk 0:02:23.8]} 27... Bc6
{[%clk 0:01:08.2]} 28. Qc2 {[%clk 0:02:21.3]} 28... Red8 {[%clk 0:01:07]} 29.
Rf2 {[%clk 0:02:20.6]} 29... Rf8 {[%clk 0:01:03.9]} 30. Rfd2 {[%clk 0:02:19.3]}
30... Rfd8 {[%clk 0:01:02.7]} 31. f5 {[%clk 0:02:19.8]} 31... gxf5 {[%clk
0:01:01.6]} 32. Bf4 {[%clk 0:02:20.3]} 32... Qf7 {[%clk 0:00:55.9]} 33. Rxd6
{[%clk 0:02:19.3]} 33... Rxd6 {[%clk 0:00:55.8]} 34. Rxd6 {[%clk 0:02:20.2]}
34... e3 {[%clk 0:00:47.8]} 35. Bxe3 {[%clk 0:02:15.7]} 35... Be4 {[%clk
0:00:43.5]} 36. Qf2 {[%clk 0:02:15.1]} 36... Rb8 {[%clk 0:00:40.9]} 37. h4
{[%clk 0:02:04.7]} 37... Qg7 {[%clk 0:00:36.9]} 38. Rd1 {[%clk 0:01:52.8]} 38...
Qg4 {[%clk 0:00:35.7]} 39. Re1 {[%clk 0:01:46.7]} 39... Rc8 {[%clk 0:00:26.6]}
40. Bf4 {[%clk 0:01:41]} 40... Rc6 {[%clk 0:00:24.1]} 41. Re3 {[%clk 0:01:39]}
41... Rg6 {[%clk 0:00:23.3]} 42. Rg3 {[%clk 0:01:39.2]} 42... Qd1+ {[%clk
0:00:23.5]} 43. Kh2 {[%clk 0:01:39.6]} 43... Rg4 {[%clk 0:00:23.6]} 44. Qxc5
{[%clk 0:01:35.8]} 44... Rxg3 {[%clk 0:00:20.5]} 45. Bxg3 {[%clk 0:01:33.9]}
45... Qe2 {[%clk 0:00:19.5]} 46. Qc8+ {[%clk 0:01:30.3]} 46... Kf7 {[%clk
0:00:19.3]} 47. Qd7+ {[%clk 0:01:30.6]} 47... Kg8 {[%clk 0:00:19.6]} 48. Qe6+
{[%clk 0:01:30.6]} 48... Kg7 {[%clk 0:00:16]} 49. Be5+ {[%clk 0:01:30.6]} 49...
Kf8 {[%clk 0:00:16.4]} 50. Bd6+ {[%clk 0:01:30.7]} 50... Kg7 {[%clk 0:00:16.6]}
51. Qe5+ {[%clk 0:01:31.3]} 51... Kf7 {[%clk 0:00:16.1]} 52. Qg3 {[%clk
0:01:29.8]} 52... Qxc4 {[%clk 0:00:13.8]} 53. Be5 {[%clk 0:01:30.3]} 53... Qe6
{[%clk 0:00:13.2]} 54. Qg7+ {[%clk 0:01:30.2]} 54... Ke8 {[%clk 0:00:13.4]} 55.
Bg3 {[%clk 0:01:30.3]} 55... Qg6 {[%clk 0:00:12.7]} 56. Qxa7 {[%clk 0:01:29.1]}
56... Qg4 {[%clk 0:00:11]} 57. Qxh7 {[%clk 0:01:21.8]} 57... Qe2 {[%clk
0:00:10.1]} 58. Qg8+ {[%clk 0:01:22.3]} 58... Kd7 {[%clk 0:00:09.4]} 59. Bf4
{[%clk 0:01:20.3]} 59... Qh5 {[%clk 0:00:06.3]} 60. Qg5 {[%clk 0:01:18.1]} 60...
Qxg5 {[%clk 0:00:06.2]} 61. Bxg5 {[%clk 0:01:19]} 1-0

[Event "Early-Titled-Tuesday-Blitz-January-30-2024"]
[Site "Chess.com"]
[Date "2024.01.30"]
[Round "9"]
[White "ahkashefi2800"]
[Black "NikolaGry"]
[Result "1-0"]
[WhiteElo "2580"]
[BlackElo "2703"]
[TimeControl "180+1"]
[EndTime "9:48:45 PST"]
[Termination "ahkashefi2800 won by resignation"]

1. Nf3 {[%clk 0:03:00.3]} 1... c5 {[%clk 0:02:57.7]} 2. g3 {[%clk 0:03:00.4]}
2... b6 {[%clk 0:02:57.4]} 3. Bg2 {[%clk 0:03:01]} 3... Bb7 {[%clk 0:02:57.9]}
4. O-O {[%clk 0:03:01.4]} 4... Nf6 {[%clk 0:02:57.7]} 5. c3 {[%clk 0:03:01.1]}
5... e6 {[%clk 0:02:57]} 6. d4 {[%clk 0:03:00.9]} 6... Be7 {[%clk 0:02:56.2]} 7.
Bg5 {[%clk 0:03:00.8]} 7... O-O {[%clk 0:02:54.8]} 8. Qc2 {[%clk 0:02:55.6]}
8... Be4 {[%clk 0:02:33.1]} 9. Qd1 {[%clk 0:02:52.9]} 9... d5 {[%clk 0:02:30.4]}
10. Nbd2 {[%clk 0:02:52.1]} 10... Bg6 {[%clk 0:02:27.8]} 11. Ne5 {[%clk
0:02:51.7]} 11... Nbd7 {[%clk 0:02:25.1]} 12. Nxg6 {[%clk 0:02:51.9]} 12... hxg6
{[%clk 0:02:23]} 13. h4 {[%clk 0:02:48.9]} 13... Rc8 {[%clk 0:02:13.3]} 14. e3
{[%clk 0:02:49.1]} 14... b5 {[%clk 0:02:10.5]} 15. a3 {[%clk 0:02:44.7]} 15...
a5 {[%clk 0:02:08.2]} 16. Re1 {[%clk 0:02:44.5]} 16... Qb6 {[%clk 0:02:04.3]}
17. Bf3 {[%clk 0:02:35.8]} 17... b4 {[%clk 0:01:50.9]} 18. axb4 {[%clk
0:02:35.2]} 18... cxb4 {[%clk 0:01:50]} 19. Rc1 {[%clk 0:02:30.9]} 19... Rfe8
{[%clk 0:01:11.2]} 20. c4 {[%clk 0:02:28.4]} 20... dxc4 {[%clk 0:01:09.9]} 21.
Nxc4 {[%clk 0:02:28]} 21... Qb5 {[%clk 0:01:08.2]} 22. b3 {[%clk 0:02:25.8]}
22... Nb6 {[%clk 0:00:55.1]} 23. Nxb6 {[%clk 0:02:17.3]} 23... Qxb6 {[%clk
0:00:54]} 24. Qe2 {[%clk 0:02:12.4]} 24... Rc7 {[%clk 0:00:42]} 25. Rxc7 {[%clk
0:02:11.7]} 25... Qxc7 {[%clk 0:00:41.7]} 26. Qa2 {[%clk 0:02:09.2]} 26... Nd5
{[%clk 0:00:36.9]} 27. Bxd5 {[%clk 0:02:05.9]} 27... exd5 {[%clk 0:00:36.9]} 28.
Qa4 {[%clk 0:02:03.5]} 28... Ra8 {[%clk 0:00:32.4]} 29. Bxe7 {[%clk 0:02:01.7]}
29... Qxe7 {[%clk 0:00:32.4]} 30. Qb5 {[%clk 0:01:59.4]} 30... Qd8 {[%clk
0:00:32.4]} 31. Rc1 {[%clk 0:01:57.7]} 31... Rb8 {[%clk 0:00:28.2]} 32. Qc6
{[%clk 0:01:57.5]} 32... Kh7 {[%clk 0:00:25.3]} 33. Rc5 {[%clk 0:01:56.9]} 33...
Rb6 {[%clk 0:00:21.5]} 34. Qa4 {[%clk 0:01:53.9]} 34... Ra6 {[%clk 0:00:18.7]}
35. Qb5 {[%clk 0:01:53.9]} 35... Rf6 {[%clk 0:00:16.3]} 36. Qxa5 {[%clk
0:01:45.4]} 36... Qd7 {[%clk 0:00:14.4]} 37. Qxb4 {[%clk 0:01:43.9]} 37... Qf5
{[%clk 0:00:13.9]} 38. Qe1 {[%clk 0:01:39.5]} 38... g5 {[%clk 0:00:13.4]} 39. e4
{[%clk 0:01:26.8]} 39... Qf3 {[%clk 0:00:09.9]} 40. hxg5 {[%clk 0:01:20.2]}
40... Re6 {[%clk 0:00:09.6]} 41. e5 {[%clk 0:00:54.5]} 41... Qxb3 {[%clk
0:00:09]} 42. Qe2 {[%clk 0:00:46.3]} 42... g6 {[%clk 0:00:08.1]} 43. Kg2 {[%clk
0:00:44.8]} 43... Kg7 {[%clk 0:00:07.7]} 44. Qf3 {[%clk 0:00:44.1]} 1-0

[Event "Early-Titled-Tuesday-Blitz-January-30-2024"]
[Site "Chess.com"]
[Date "2024.01.30"]
[Round "9"]
[White "PavelShkapenko"]
[Black "Lady_Nika"]
[Result "1-0"]
[WhiteElo "2767"]
[BlackElo "2583"]
[TimeControl "180+1"]
[EndTime "9:48:47 PST"]
[Termination "PavelShkapenko won by checkmate"]

1. e4 {[%clk 0:02:59.3]} 1... e6 {[%clk 0:02:59.1]} 2. d4 {[%clk 0:02:58]} 2...
d5 {[%clk 0:02:59.4]} 3. exd5 {[%clk 0:02:58.9]} 3... exd5 {[%clk 0:02:59.4]} 4.
Nf3 {[%clk 0:02:59.7]} 4... Nf6 {[%clk 0:03:00.3]} 5. Bd3 {[%clk 0:02:59.6]}
5... Bd6 {[%clk 0:03:00.5]} 6. O-O {[%clk 0:02:59.7]} 6... O-O {[%clk
0:03:00.8]} 7. Bg5 {[%clk 0:02:59.6]} 7... Nbd7 {[%clk 0:03:00.1]} 8. Nbd2
{[%clk 0:02:57.6]} 8... c6 {[%clk 0:03:00.2]} 9. c4 {[%clk 0:02:57.3]} 9... Qc7
{[%clk 0:03:00.5]} 10. c5 {[%clk 0:02:43.2]} 10... Bf4 {[%clk 0:02:59.8]} 11.
Bxf4 {[%clk 0:02:43.7]} 11... Qxf4 {[%clk 0:02:59.6]} 12. Re1 {[%clk 0:02:42.9]}
12... b6 {[%clk 0:02:39.1]} 13. b4 {[%clk 0:02:42.7]} 13... a5 {[%clk
0:02:37.7]} 14. b5 {[%clk 0:02:36.6]} 14... Bb7 {[%clk 0:02:27]} 15. cxb6 {[%clk
0:02:30.3]} 15... Nxb6 {[%clk 0:02:18.3]} 16. Rb1 {[%clk 0:02:26]} 16... cxb5
{[%clk 0:01:49.9]} 17. Rxb5 {[%clk 0:02:20.7]} 17... Ba6 {[%clk 0:01:48.6]} 18.
Bxh7+ {[%clk 0:02:19.5]} 18... Nxh7 {[%clk 0:01:44.7]} 19. Rxb6 {[%clk
0:02:19.8]} 19... Bd3 {[%clk 0:01:35.8]} 20. Qb3 {[%clk 0:01:47.1]} 20... Be4
{[%clk 0:01:22.8]} 21. Nxe4 {[%clk 0:01:47.1]} 21... dxe4 {[%clk 0:01:22.8]} 22.
Ne5 {[%clk 0:01:47.6]} 22... Rad8 {[%clk 0:01:15.2]} 23. Ng6 {[%clk 0:01:42.6]}
23... a4 {[%clk 0:00:36.6]} 24. Ne7+ {[%clk 0:00:45.3]} 24... Kh8 {[%clk
0:00:36.2]} 25. Qxa4 {[%clk 0:00:45.9]} 25... Rfe8 {[%clk 0:00:23.7]} 26. Nc6
{[%clk 0:00:42.3]} 26... Ra8 {[%clk 0:00:23.2]} 27. Qc2 {[%clk 0:00:38.8]} 27...
e3 {[%clk 0:00:22.2]} 28. Ne5 {[%clk 0:00:23.2]} 28... Qxd4 {[%clk 0:00:16]} 29.
Nxf7+ {[%clk 0:00:13.3]} 29... Kg8 {[%clk 0:00:15.9]} 30. Nh6+ {[%clk
0:00:13.5]} 30... gxh6 {[%clk 0:00:09.8]} 31. Rg6+ {[%clk 0:00:13.2]} 31... Kh8
{[%clk 0:00:09.1]} 32. f3 {[%clk 0:00:13.5]} 32... e2+ {[%clk 0:00:08.9]} 33.
Kh1 {[%clk 0:00:13.7]} 33... Rad8 {[%clk 0:00:04.6]} 34. Rxh6 {[%clk 0:00:13.5]}
34... Qd1 {[%clk 0:00:04.2]} 35. Qxh7# {[%clk 0:00:12.6]} 1-0

[Event "Early-Titled-Tuesday-Blitz-January-30-2024"]
[Site "Chess.com"]
[Date "2024.01.30"]
[Round "9"]
[White "PetrolulSah"]
[Black "RCone"]
[Result "0-1"]
[WhiteElo "2214"]
[BlackElo "2400"]
[TimeControl "180+1"]
[EndTime "9:48:47 PST"]
[Termination "RCone won by resignation"]

1. d4 {[%clk 0:03:00.9]} 1... d6 {[%clk 0:02:57.7]} 2. g3 {[%clk 0:02:58.7]}
2... Nf6 {[%clk 0:02:57.9]} 3. Bg2 {[%clk 0:02:58.7]} 3... g6 {[%clk 0:02:58.8]}
4. c4 {[%clk 0:02:57.5]} 4... Bg7 {[%clk 0:02:59.4]} 5. Nc3 {[%clk 0:02:57.6]}
5... O-O {[%clk 0:03:00]} 6. e4 {[%clk 0:02:55.2]} 6... e5 {[%clk 0:02:55]} 7.
d5 {[%clk 0:02:41.7]} 7... a5 {[%clk 0:02:53.5]} 8. h3 {[%clk 0:02:39.2]} 8...
Na6 {[%clk 0:02:53.9]} 9. Nf3 {[%clk 0:02:37.9]} 9... Nd7 {[%clk 0:02:54]} 10.
O-O {[%clk 0:02:16.6]} 10... h6 {[%clk 0:02:53.4]} 11. Ne1 {[%clk 0:02:14.4]}
11... f5 {[%clk 0:02:40.4]} 12. Nd3 {[%clk 0:02:12.1]} 12... Ndc5 {[%clk
0:02:35.6]} 13. f4 {[%clk 0:02:01.8]} 13... Nxd3 {[%clk 0:02:30.2]} 14. Qxd3
{[%clk 0:02:02.7]} 14... Nc5 {[%clk 0:02:27.5]} 15. Qe2 {[%clk 0:02:02.7]} 15...
exf4 {[%clk 0:02:25.7]} 16. Bxf4 {[%clk 0:01:58.1]} 16... g5 {[%clk 0:02:24.4]}
17. Bd2 {[%clk 0:01:53.3]} 17... Qf6 {[%clk 0:02:05.7]} 18. Kh2 {[%clk
0:01:46.2]} 18... Qg6 {[%clk 0:01:47.6]} 19. Nb5 {[%clk 0:01:37.3]} 19... Rf7
{[%clk 0:01:47.4]} 20. exf5 {[%clk 0:01:31.2]} 20... Bxf5 {[%clk 0:01:46.7]} 21.
Bc3 {[%clk 0:01:31.2]} 21... Bxc3 {[%clk 0:01:41.3]} 22. Nxc3 {[%clk 0:01:32.1]}
22... Bd3 {[%clk 0:01:29.1]} 23. Qe3 {[%clk 0:01:14.5]} 23... Bxf1 {[%clk
0:01:26.4]} 24. Bxf1 {[%clk 0:01:14.7]} 24... Qc2+ {[%clk 0:01:13.7]} 25. Bg2
{[%clk 0:01:07]} 25... Rf2 {[%clk 0:01:12.8]} 26. Rg1 {[%clk 0:01:03.5]} 26...
Raf8 {[%clk 0:01:08]} 27. Nb5 {[%clk 0:00:35.2]} 27... Qh7 {[%clk 0:00:58]} 28.
Nd4 {[%clk 0:00:28.8]} 28... Rxb2 {[%clk 0:00:43.5]} 29. Ne6 {[%clk 0:00:28.5]}
29... Nxe6 {[%clk 0:00:40.3]} 30. dxe6 {[%clk 0:00:26.6]} 30... Qe7 {[%clk
0:00:30.7]} 31. Kh1 {[%clk 0:00:25.7]} 31... Rff2 {[%clk 0:00:27]} 32. Qe4
{[%clk 0:00:16.1]} 32... Kg7 {[%clk 0:00:20.5]} 33. Qd4+ {[%clk 0:00:15.5]}
33... Qf6 {[%clk 0:00:16.8]} 34. Qe4 {[%clk 0:00:15.2]} 34... Rbe2 {[%clk
0:00:14.2]} 35. Qd3 {[%clk 0:00:14.6]} 35... Qxe6 {[%clk 0:00:12.7]} 36. Qb3
{[%clk 0:00:13.6]} 36... b6 {[%clk 0:00:11]} 37. Qc3+ {[%clk 0:00:12.4]} 37...
Kg8 {[%clk 0:00:08.2]} 38. Qd3 {[%clk 0:00:12.6]} 38... Qxh3+ {[%clk 0:00:06.8]}
0-1

[Event "Early-Titled-Tuesday-Blitz-January-30-2024"]
[Site "Chess.com"]
[Date "2024.01.30"]
[Round "9"]
[White "NastyaHn"]
[Black "otrov-11"]
[Result "1-0"]
[WhiteElo "2393"]
[BlackElo "2485"]
[TimeControl "180+1"]
[EndTime "9:48:50 PST"]
[Termination "NastyaHn won by resignation"]

1. Nc3 {[%clk 0:02:51.1]} 1... Nc6 {[%clk 0:02:54.2]} 2. d4 {[%clk 0:02:48.9]}
2... d5 {[%clk 0:02:54.2]} 3. Nf3 {[%clk 0:02:48.4]} 3... Bf5 {[%clk 0:02:53.5]}
4. a3 {[%clk 0:02:40]} 4... e6 {[%clk 0:02:52.1]} 5. Bf4 {[%clk 0:02:38.9]} 5...
Nf6 {[%clk 0:02:49.3]} 6. e3 {[%clk 0:02:38.2]} 6... Bd6 {[%clk 0:02:35.3]} 7.
Ne5 {[%clk 0:02:34.2]} 7... Ne7 {[%clk 0:02:31.4]} 8. Bd3 {[%clk 0:02:31.8]}
8... a6 {[%clk 0:02:30.4]} 9. Qd2 {[%clk 0:02:25.3]} 9... c5 {[%clk 0:02:30]}
10. dxc5 {[%clk 0:02:20.8]} 10... Bxc5 {[%clk 0:02:30.9]} 11. Bxf5 {[%clk
0:02:13.4]} 11... Nxf5 {[%clk 0:02:30.6]} 12. g4 {[%clk 0:02:13]} 12... Nd6
{[%clk 0:02:30]} 13. f3 {[%clk 0:02:03.4]} 13... O-O {[%clk 0:02:20.9]} 14.
O-O-O {[%clk 0:02:00.5]} 14... b5 {[%clk 0:02:21]} 15. g5 {[%clk 0:01:57.4]}
15... Nd7 {[%clk 0:02:19.3]} 16. Nd3 {[%clk 0:01:49.4]} 16... Qb6 {[%clk
0:02:16]} 17. Nxc5 {[%clk 0:01:46.7]} 17... Nxc5 {[%clk 0:02:16.9]} 18. Qd4
{[%clk 0:01:39.9]} 18... Nf5 {[%clk 0:02:11]} 19. Qd2 {[%clk 0:01:37.9]} 19...
Rac8 {[%clk 0:02:10.7]} 20. e4 {[%clk 0:01:36]} 20... dxe4 {[%clk 0:02:06]} 21.
fxe4 {[%clk 0:01:36.1]} 21... Nh4 {[%clk 0:02:02.2]} 22. Qd6 {[%clk 0:01:07.6]}
22... Rc6 {[%clk 0:02:01.5]} 23. Qd4 {[%clk 0:00:59.1]} 23... Ng6 {[%clk
0:01:57.2]} 24. Be3 {[%clk 0:00:47.8]} 24... Qc7 {[%clk 0:01:49.2]} 25. Kb1
{[%clk 0:00:41.3]} 25... Rb8 {[%clk 0:01:41.4]} 26. h4 {[%clk 0:00:37.4]} 26...
e5 {[%clk 0:01:33.2]} 27. Qd2 {[%clk 0:00:32.6]} 27... b4 {[%clk 0:01:31.3]} 28.
axb4 {[%clk 0:00:28.6]} 28... Rxb4 {[%clk 0:01:32.2]} 29. Nd5 {[%clk 0:00:16.6]}
29... Rxb2+ {[%clk 0:01:30.3]} 30. Kxb2 {[%clk 0:00:15.7]} 30... Na4+ {[%clk
0:01:25.7]} 31. Kc1 {[%clk 0:00:12.1]} 31... Qc8 {[%clk 0:00:50.7]} 32. h5
{[%clk 0:00:11.5]} 32... Qf8 {[%clk 0:00:43.4]} 33. Qb4 {[%clk 0:00:09.3]} 33...
Qc8 {[%clk 0:00:27.2]} 34. hxg6 {[%clk 0:00:09]} 34... Rxc2+ {[%clk 0:00:26.8]}
35. Kb1 {[%clk 0:00:09.5]} 35... Nc3+ {[%clk 0:00:09.9]} 36. Nxc3 {[%clk
0:00:09.2]} 36... Rxc3 {[%clk 0:00:10.8]} 37. gxh7+ {[%clk 0:00:08.6]} 37... Kh8
{[%clk 0:00:11.4]} 38. Rc1 {[%clk 0:00:08.2]} 1-0

[Event "Early-Titled-Tuesday-Blitz-January-30-2024"]
[Site "Chess.com"]
[Date "2024.01.30"]
[Round "9"]
[White "Sattarov_Bobur"]
[Black "SaqoChess_Twitch"]
[Result "0-1"]
[WhiteElo "2757"]
[BlackElo "2618"]
[TimeControl "180+1"]
[EndTime "9:48:51 PST"]
[Termination "SaqoChess_Twitch won on time"]

1. e4 {[%clk 0:02:59.4]} 1... c5 {[%clk 0:02:59.2]} 2. Nf3 {[%clk 0:02:58.5]}
2... d6 {[%clk 0:02:59.5]} 3. d4 {[%clk 0:02:58.6]} 3... cxd4 {[%clk 0:03:00.4]}
4. Nxd4 {[%clk 0:02:59.5]} 4... Nf6 {[%clk 0:03:01.1]} 5. f3 {[%clk 0:03:00.1]}
5... g6 {[%clk 0:03:01.6]} 6. Nc3 {[%clk 0:03:00]} 6... Bg7 {[%clk 0:03:01.5]}
7. Be3 {[%clk 0:03:00.6]} 7... O-O {[%clk 0:03:02.3]} 8. Qd2 {[%clk 0:03:01.2]}
8... Nc6 {[%clk 0:03:03]} 9. g4 {[%clk 0:03:01.9]} 9... Nxd4 {[%clk 0:03:01.7]}
10. Bxd4 {[%clk 0:03:02.8]} 10... Be6 {[%clk 0:03:02.2]} 11. Nd5 {[%clk
0:03:02.7]} 11... Nxd5 {[%clk 0:02:27.8]} 12. exd5 {[%clk 0:03:02.5]} 12... Bxd4
{[%clk 0:02:25.1]} 13. dxe6 {[%clk 0:02:09.7]} 13... Bxb2 {[%clk 0:02:24.1]} 14.
exf7+ {[%clk 0:02:02.1]} 14... Kg7 {[%clk 0:02:24.1]} 15. Rb1 {[%clk 0:02:01.2]}
15... Bf6 {[%clk 0:01:56.9]} 16. Bc4 {[%clk 0:01:57.4]} 16... Rc8 {[%clk
0:01:51.3]} 17. Qd3 {[%clk 0:01:56.5]} 17... Qc7 {[%clk 0:01:48.1]} 18. Bb3
{[%clk 0:01:53.8]} 18... Qa5+ {[%clk 0:01:46]} 19. Kf1 {[%clk 0:01:51.1]} 19...
Rc3 {[%clk 0:01:45.7]} 20. Qe4 {[%clk 0:01:46.6]} 20... Qb6 {[%clk 0:01:30.3]}
21. Re1 {[%clk 0:01:40]} 21... Qc6 {[%clk 0:01:15.9]} 22. Kg2 {[%clk 0:01:35.1]}
22... a5 {[%clk 0:01:02.2]} 23. a4 {[%clk 0:01:25.8]} 23... d5 {[%clk
0:00:52.8]} 24. Bxd5 {[%clk 0:01:17.1]} 24... Rxc2+ {[%clk 0:00:52.2]} 25. Kh3
{[%clk 0:01:17.6]} 25... Qc3 {[%clk 0:00:45.6]} 26. Re3 {[%clk 0:01:15.9]} 26...
Qd2 {[%clk 0:00:45.2]} 27. f4 {[%clk 0:01:12.1]} 27... g5 {[%clk 0:00:25.7]} 28.
fxg5 {[%clk 0:00:48.4]} 28... Bxg5 {[%clk 0:00:25.6]} 29. Rd3 {[%clk 0:00:38.8]}
29... Qf2 {[%clk 0:00:24.2]} 30. Qe1 {[%clk 0:00:22.4]} 30... Qf6 {[%clk
0:00:20.5]} 31. Qa1 {[%clk 0:00:12.9]} 31... Rb2 {[%clk 0:00:20.7]} 32. Rf1
{[%clk 0:00:02.4]} 32... Qh6+ {[%clk 0:00:20.8]} 33. Kg3 {[%clk 0:00:02.9]}
33... Qh4+ {[%clk 0:00:21]} 34. Kf3 {[%clk 0:00:03.1]} 34... Qh3+ {[%clk
0:00:21.6]} 35. Ke4 {[%clk 0:00:03.1]} 35... Qxg4+ {[%clk 0:00:21.9]} 36. Ke5
{[%clk 0:00:02.2]} 36... Re2+ {[%clk 0:00:20.3]} 0-1

[Event "Early-Titled-Tuesday-Blitz-January-30-2024"]
[Site "Chess.com"]
[Date "2024.01.30"]
[Round "9"]
[White "hsd2016"]
[Black "Kunalm64"]
[Result "0-1"]
[WhiteElo "2329"]
[BlackElo "2558"]
[TimeControl "180+1"]
[EndTime "9:48:51 PST"]
[Termination "Kunalm64 won by resignation"]

1. e4 {[%clk 0:03:00.9]} 1... c6 {[%clk 0:02:59.5]} 2. d4 {[%clk 0:02:59.9]}
2... d5 {[%clk 0:02:59.6]} 3. exd5 {[%clk 0:03:00.3]} 3... cxd5 {[%clk
0:02:59.6]} 4. Bd3 {[%clk 0:02:55.1]} 4... Nc6 {[%clk 0:02:58.8]} 5. c3 {[%clk
0:02:55.6]} 5... Qc7 {[%clk 0:02:56.9]} 6. Nf3 {[%clk 0:02:52.3]} 6... Bg4
{[%clk 0:02:55.7]} 7. h3 {[%clk 0:02:52.4]} 7... Bh5 {[%clk 0:02:50.5]} 8. Nbd2
{[%clk 0:02:51.7]} 8... e6 {[%clk 0:02:50]} 9. O-O {[%clk 0:02:49.6]} 9... Bd6
{[%clk 0:02:49]} 10. Re1 {[%clk 0:02:48.5]} 10... Nge7 {[%clk 0:02:48.2]} 11.
Qc2 {[%clk 0:02:46]} 11... Bg6 {[%clk 0:02:46.2]} 12. Bxg6 {[%clk 0:02:45.8]}
12... hxg6 {[%clk 0:02:45.8]} 13. Nf1 {[%clk 0:02:39.2]} 13... O-O-O {[%clk
0:02:44.3]} 14. Ne3 {[%clk 0:02:38.2]} 14... Nf5 {[%clk 0:02:44]} 15. Nxf5
{[%clk 0:02:38.3]} 15... gxf5 {[%clk 0:02:44]} 16. b4 {[%clk 0:02:31.4]} 16...
Nxb4 {[%clk 0:02:42.4]} 17. Qa4 {[%clk 0:02:29]} 17... Nc6 {[%clk 0:02:32.6]}
18. Rb1 {[%clk 0:02:26.8]} 18... b6 {[%clk 0:02:25.7]} 19. Be3 {[%clk
0:01:57.8]} 19... Na5 {[%clk 0:02:23.5]} 20. Nd2 {[%clk 0:01:43.6]} 20... f4
{[%clk 0:02:19.1]} 21. c4 {[%clk 0:01:43.6]} 21... fxe3 {[%clk 0:02:17.5]} 22.
fxe3 {[%clk 0:01:44]} 22... dxc4 {[%clk 0:02:06.6]} 23. Rec1 {[%clk 0:01:43.3]}
23... Qc6 {[%clk 0:01:48.6]} 24. Rxc4 {[%clk 0:01:29.3]} 24... Bc5 {[%clk
0:01:46.3]} 25. Qxc6+ {[%clk 0:00:48.2]} 25... Nxc6 {[%clk 0:01:44.3]} 26. Ne4
{[%clk 0:00:48]} 26... f5 {[%clk 0:00:53.4]} 27. Ng5 {[%clk 0:00:45.4]} 27...
Nxd4 {[%clk 0:00:48.1]} 28. exd4 {[%clk 0:00:42.8]} 28... Rxd4 {[%clk
0:00:47.9]} 29. Rxd4 {[%clk 0:00:39.9]} 29... Bxd4+ {[%clk 0:00:47.7]} 30. Kf1
{[%clk 0:00:40.8]} 30... e5 {[%clk 0:00:37]} 31. Nf7 {[%clk 0:00:38.1]} 31...
Rf8 {[%clk 0:00:32.5]} 32. Nd6+ {[%clk 0:00:37.1]} 32... Kd7 {[%clk 0:00:29.6]}
33. Nb5 {[%clk 0:00:36.7]} 33... Bc5 {[%clk 0:00:21.9]} 34. Rd1+ {[%clk
0:00:33.4]} 34... Ke6 {[%clk 0:00:18.9]} 35. Nc7+ {[%clk 0:00:25]} 35... Kf6
{[%clk 0:00:18.2]} 36. Rd7 {[%clk 0:00:19.4]} 36... Rf7 {[%clk 0:00:14]} 37.
Ne8+ {[%clk 0:00:19.7]} 37... Kg6 {[%clk 0:00:13.9]} 38. Rd5 {[%clk 0:00:17.7]}
38... Re7 {[%clk 0:00:13.5]} 39. Nd6 {[%clk 0:00:16]} 39... Rd7 {[%clk
0:00:12.5]} 40. Nc8 {[%clk 0:00:12]} 40... Rxd5 {[%clk 0:00:12.3]} 0-1